[Event "22nd OIBM 2018"]
[Site "Gmund am Tegernsee"]
[Date "2018.10.28"]
[Round "2"]
[White "Billio, Atto"]
[Black "Bussard, Christian"]
[Result "1/2-1/2"]
[ECO "E62"]
[WhiteElo "2074"]
[BlackElo "2283"]
[Annotator "NA"]
[PlyCount "77"]
[EventDate "2018.10.27"]
[EventType "swiss"]
[EventCountry "GER"]
[SourceTitle "playchess.com"]
[Source "ChessBase"]
[SourceQuality "1"]
[TimeControl "40/5400+30:1800+30"]

1. d4 {[%emt 0:00:00]} g6 {[%emt 0:00:00]} 2. Nf3 {[%emt 0:00:00]} Bg7 {[%emt 0:00:00]} 3. g3 {[%emt 0:00:00]} d6 {[%emt 0:02:05]} 4. Bg2 {[%emt 0:00:00]} Nf6 {[%emt 0:00:49]} 5. O-O {[%emt 0:00:07]} O-O {[%emt 0:00:37]} 6. c4 {[%emt 0:00:06]} Nc6 {[%emt 0:04:09]} 7. Nc3 {[%emt 0:00:07]} Bg4 {[%emt 0:03:18]} 8. h3 {[%emt 0:01:37]} Bxf3 {[%emt 0:01:00]} 9. Bxf3 {[%emt 0:00:03]} Nd7 {[%emt 0:00:30]} 10. e3 {[%emt 0:06:34]} e5 {[%emt 0:00:29]} 11. d5 {[%emt 0:05:08]} Ne7 {[%emt 0:00:51]} 12. Bg2 {[%emt 0:00:28]} f5 {[%emt 0:01:33]} 13. f4 {[%emt 0:00:32]} a5 {[%emt 0:06:42]} 14. Qc2 {[%emt 0:01:33]} Nc5 {[%emt 0:02:56]} 15. b3 {[%emt 0:00:15]} e4 {[%emt 0:03:53]} 16. Rd1 {[%emt 0:05:00]} c6 {[%emt 0:09:16]} 17. Rb1 {[%emt 0:05:32]} Nd3 {[%emt 0:08:48]} 18. dxc6 {[%emt 0:01:15]} bxc6 {[%emt 0:11:28]} 19. Ba3 {[%emt 0:04:21]} Qb6 {[%emt 0:10:36]} 20. Rxd3 {[%emt 0:05:09]} exd3 {[%emt 0:00:30]} 21. Qxd3 {[%emt 0:00:03]} Rad8 {[%emt 0:02:57]} 22. Kh2 {[%emt 0:02:08]} Qc7 {[%emt 0:02:35]} 23. Rd1 {[%emt 0:02:14]} Kh8 {[%emt 0:03:28]} 24. Ne2 {[%emt 0:13:25]} c5 {[%emt 0:00:04]} 25. Nc3 {[%emt 0:00:33]} Nc8 {[%emt 0:00:01]} 26. e4 {[%emt 0:05:58]} Qf7 {[%emt 0:03:45]} 27. e5 {[%emt 0:02:59]} Qe8 {[%emt 0:02:33]} 28. exd6 {[%emt 0:02:29]} Nxd6 {[%emt 0:00:29]} 29. Bd5 {[%emt 0:03:19]} Nb7 {[%emt 0:10:18]} 30. Qf3 {[%emt 0:01:11]} Rb8 {[%emt 0:01:59]} 31. Bxb7 {[%emt 0:01:47]} Rxb7 {[%emt 0:00:23]} 32. Qxb7 {[%emt 0:00:45]} Qe3 {[%emt 0:03:28]} 33. Bb2 {[%emt 0:03:44]} Bxc3 {[%emt 0:01:13]} 34. Bxc3+ {[%emt 0:00:19]} Qxc3 {[%emt 0:00:22]} 35. Qd7 {[%emt 0:06:22]} a4 {[%emt 0:02:14]} 36. Qd2 {[%emt 0:04:02]} Qxd2+ {[%emt 0:01:14]} 37. Rxd2 {[%emt 0:00:02]} Re8 {[%emt 0:01:19]} 38. bxa4 {[%emt 0:03:07]} Re4 {[%emt 0:00:03]} 39. Rd5 {[%emt 0:12:13]} 1/2-1/2

[Event "22nd OIBM 2018"]
[Site "Gmund am Tegernsee"]
[Date "2018.10.28"]
[Round "2"]
[White "Kick, Joachim"]
[Black "Ries, Berthold"]
[Result "1-0"]
[ECO "A04"]
[WhiteElo "2070"]
[BlackElo "1862"]
[Annotator "NA RC"]
[PlyCount "21"]
[EventDate "2018.10.27"]
[EventType "swiss"]
[EventCountry "GER"]
[SourceTitle "playchess.com"]
[Source "ChessBase"]
[SourceQuality "1"]
[TimeControl "40/5400+30:1800+30"]

1. Nf3 {[%emt 0:00:00]} c5 {[%emt 0:00:00]} 2. c4 {[%emt 0:00:00]} Nc6 {[%emt 0:00:00]} 3. d4 {[%emt 0:00:19]} cxd4 {[%emt 0:00:05]} 4. Nxd4 {[%emt 0:00:07]} Nf6 {[%emt 0:01:19]} 5. g3 {[%emt 0:00:44]} d6 {[%emt 0:05:33]} 6. Bg2 {[%emt 0:00:25]} Bd7 {[%emt 0:00:10]} 7. Nc3 {[%emt 0:01:11]} g6 {[%emt 0:01:04]} 8. Nc2 {[%emt 0:03:32]} Bg7 {[%emt 0:06:45]} 9. O-O {[%emt 0:00:11]} O-O {[%emt 0:02:41]} 10. b3 {[%emt 0:08:04]} Ne4 {[%emt 0:08:30]} 11. Nxe4 {[%emt 0:03:40]} 1-0

[Event "22nd OIBM 2018"]
[Site "Gmund am Tegernsee"]
[Date "2018.10.28"]
[Round "2"]
[White "Schoen, Rudolf"]
[Black "Rietze, Clemens"]
[Result "1/2-1/2"]
[ECO "B23"]
[WhiteElo "1997"]
[BlackElo "2293"]
[Annotator "NA"]
[PlyCount "70"]
[EventDate "2018.10.27"]
[EventType "swiss"]
[EventCountry "GER"]
[SourceTitle "playchess.com"]
[Source "ChessBase"]
[SourceQuality "1"]
[TimeControl "40/5400+30:1800+30"]

1. e4 {[%emt 0:00:00]} c5 {[%emt 0:00:00]} 2. Nc3 {[%emt 0:00:00]} Nc6 {[%emt 0:00:00]} 3. f4 {[%emt 0:00:00]} g6 {[%emt 0:00:00]} 4. Nf3 {[%emt 0:00:01]} Bg7 {[%emt 0:00:00]} 5. Bb5 {[%emt 0:00:10]} Nd4 {[%emt 0:00:00]} 6. O-O {[%emt 0:00:14]} a6 {[%emt 0:00:22]} 7. Bd3 {[%emt 0:00:27]} e6 {[%emt 0:00:30]} 8. e5 {[%emt 0:02:14]} Nxf3+ {[%emt 0:12:48]} 9. Qxf3 {[%emt 0:00:32]} d5 {[%emt 0:00:05]} 10. exd6 {[%emt 0:07:09]} Qxd6 {[%emt 0:05:13]} 11. b3 {[%emt 0:07:35]} Bd4+ {[%emt 0:16:14]} 12. Kh1 {[%emt 0:00:13]} Nf6 {[%emt 0:00:03]} 13. Bb2 {[%emt 0:06:34]} O-O {[%emt 0:04:30]} 14. Na4 {[%emt 0:03:18]} Nd7 {[%emt 0:05:34]} 15. Rae1 {[%emt 0:07:05]} Rb8 {[%emt 0:00:45]} 16. Nc3 {[%emt 0:07:22]} Qc7 {[%emt 0:02:30]} 17. a4 {[%emt 0:01:59]} Nf6 {[%emt 0:03:26]} 18. Nd1 {[%emt 0:01:49]} Bxb2 {[%emt 0:01:56]} 19. Nxb2 {[%emt 0:03:42]} b5 {[%emt 0:01:06]} 20. axb5 {[%emt 0:01:01]} axb5 {[%emt 0:00:02]} 21. Qe2 {[%emt 0:01:17]} Bd7 {[%emt 0:04:45]} 22. Qe5 {[%emt 0:03:23]} Qxe5 {[%emt 0:01:26]} 23. fxe5 {[%emt 0:00:52]} Nd5 {[%emt 0:01:16]} 24. Be4 {[%emt 0:00:59]} Bc6 {[%emt 0:03:17]} 25. Nd3 {[%emt 0:03:41]} c4 {[%emt 0:00:57]} 26. Nf2 {[%emt 0:02:24]} cxb3 {[%emt 0:15:07]} 27. cxb3 {[%emt 0:00:14]} Ne7 {[%emt 0:00:03]} 28. Ng4 {[%emt 0:01:17]} Rbd8 {[%emt 0:01:20]} 29. Bxc6 {[%emt 0:10:10]} Nxc6 {[%emt 0:00:01]} 30. Rc1 {[%emt 0:01:15]} Nb4 {[%emt 0:05:23]} 31. Rc7 {[%emt 0:03:20]} Kg7 {[%emt 0:00:41]} 32. Nf6 {[%emt 0:04:18]} Nd5 {[%emt 0:06:43]} 33. Rb7 {[%emt 0:01:28]} Rb8 {[%emt 0:03:57]} 34. Rxb8 {[%emt 0:00:36]} Rxb8 {[%emt 0:00:02]} 35. Ne4 {[%emt 0:00:36]} b4 {[%emt 0:04:08]} 1/2-1/2

[Event "22nd OIBM 2018"]
[Site "Gmund am Tegernsee"]
[Date "2018.10.29"]
[Round "3"]
[White "Firouzja, Alireza"]
[Black "Schoen, Rudolf"]
[Result "1-0"]
[ECO "B31"]
[WhiteElo "2600"]
[BlackElo "1997"]
[Annotator "RC"]
[PlyCount "51"]
[EventDate "2018.10.27"]
[EventType "swiss"]
[EventCountry "GER"]
[SourceTitle "playchess.com"]
[Source "ChessBase"]
[SourceQuality "1"]
[TimeControl "40/5400+30:1800+30"]

1. e4 {[%emt 0:00:13]} c5 {[%emt 0:00:00]} 2. Nf3 {[%emt 0:00:08]} Nc6 {[%emt 0:00:07]} 3. Bb5 {[%emt 0:00:27]} g6 {[%emt 0:01:41]} 4. Bxc6 {[%emt 0:00:28]} dxc6 {[%emt 0:02:43]} 5. h3 {[%emt 0:00:09]} Nf6 {[%emt 0:01:10]} 6. Nc3 {[%emt 0:02:45]} Bg7 {[%emt 0:00:31]} 7. d3 {[%emt 0:00:08]} O-O {[%emt 0:01:20]} 8. Be3 {[%emt 0:00:16]} b6 {[%emt 0:01:25]} 9. Qd2 {[%emt 0:00:20]} Re8 {[%emt 0:04:18]} 10. Bh6 {[%emt 0:01:20]} Bh8 {[%emt 0:01:52]} 11. e5 {[%emt 0:01:56]} Nd5 {[%emt 0:01:05]} 12. Ne4 {[%emt 0:01:41]} Bf5 {[%emt 0:09:23]} 13. Ng3 {[%emt 0:04:26]} Bd7 {[%emt 0:05:02]} 14. O-O {[%emt 0:05:09]} Qc7 {[%emt 0:16:11]} 15. c4 {[%emt 0:02:02]} Nb4 {[%emt 0:02:02]} 16. a3 {[%emt 0:00:33]} Na6 {[%emt 0:00:31]} 17. Qf4 {[%emt 0:00:08]} f6 {[%emt 0:06:35]} 18. Rfe1 {[%emt 0:01:40]} Rad8 {[%emt 0:02:01]} 19. Re3 {[%emt 0:05:24]} Qb8 {[%emt 0:06:07]} 20. Rae1 {[%emt 0:02:15]} Nc7 {[%emt 0:01:06]} 21. exf6 {[%emt 0:00:29]} exf6 {[%emt 0:02:14]} 22. Re7 {[%emt 0:00:25]} Qc8 {[%emt 0:03:30]} 23. Nh5 {[%emt 0:08:14]} f5 {[%emt 0:04:13]} 24. Bg7 {[%emt 0:00:44]} gxh5 {[%emt 0:03:17]} 25. Bxh8 {[%emt 0:00:43]} Rxe7 {[%emt 0:00:42]} 26. Rxe7 {[%emt 0:00:21]} 1-0

[Event "22nd OIBM 2018"]
[Site "Gmund am Tegernsee"]
[Date "2018.10.29"]
[Round "3"]
[White "Meins, Gerlef"]
[Black "Zeier, Klaus"]
[Result "1/2-1/2"]
[ECO "A14"]
[WhiteElo "2408"]
[BlackElo "2228"]
[Annotator "ChessBase"]
[PlyCount "61"]
[EventDate "2018.10.27"]
[EventType "swiss"]
[EventCountry "GER"]
[SourceTitle "playchess.com"]
[Source "ChessBase"]
[SourceQuality "1"]
[TimeControl "40/5400+30:1800+30"]

1. Nf3 {[%emt 0:00:00]} Nf6 {[%emt 0:00:00]} 2. c4 {[%emt 0:00:00]} e6 {[%emt 0:00:00]} 3. g3 {[%emt 0:00:37]} d5 {[%emt 0:00:10]} 4. Bg2 {[%emt 0:00:18]} Be7 {[%emt 0:00:13]} 5. O-O {[%emt 0:00:41]} O-O {[%emt 0:00:17]} 6. d4 {[%emt 0:00:47]} dxc4 {[%emt 0:00:14]} 7. Ne5 {[%emt 0:00:51]} c5 {[%emt 0:00:17]} 8. dxc5 {[%emt 0:02:21]} Qc7 {[%emt 0:00:18]} 9. Nxc4 {[%emt 0:01:18]} Qxc5 {[%emt 0:00:21]} 10. b3 {[%emt 0:06:32]} Rd8 {[%emt 0:00:14]} 11. Nbd2 {[%emt 0:01:46]} Qc7 {[%emt 0:00:22]} 12. Bb2 {[%emt 0:01:44]} Nc6 {[%emt 0:00:10]} 13. Rc1 {[%emt 0:01:24]} Bd7 {[%emt 0:00:21]} 14. Ne5 {[%emt 0:11:52]} Qa5 {[%emt 0:00:12]} 15. Ndc4 {[%emt 0:24:15]} Qa6 {[%emt 0:00:17]} 16. Bxc6 {[%emt 0:03:36]} Bxc6 {[%emt 0:02:35]} 17. Nxc6 {[%emt 0:00:16]} Qxc6 {[%emt 0:16:54]} 18. Qc2 {[%emt 0:01:05]} Rac8 {[%emt 0:01:33]} 19. Rfd1 {[%emt 0:03:16]} Rxd1+ {[%emt 0:01:51]} 20. Qxd1 {[%emt 0:00:18]} Rd8 {[%emt 0:00:45]} 21. Qc2 {[%emt 0:04:03]} Qd5 {[%emt 0:00:56]} 22. Ne3 {[%emt 0:06:41]} Qb5 {[%emt 0:11:40]} 23. Qc7 {[%emt 0:07:48]} Kf8 {[%emt 0:15:41]} 24. Ba3 {[%emt 0:04:21]} Qd7 {[%emt 0:01:15]} 25. Bxe7+ {[%emt 0:03:54]} Qxe7 {[%emt 0:00:03]} 26. Qe5 {[%emt 0:00:50]} b6 {[%emt 0:16:35]} 27. Rc7 {[%emt 0:01:13]} Rd7 {[%emt 0:00:17]} 28. Rc8+ {[%emt 0:01:20]} Rd8 {[%emt 0:00:15]} 29. Rc7 {[%emt 0:01:35]} Rd7 {[%emt 0:00:01]} 30. Rc8+ {[%emt 0:00:32]} Rd8 {[%emt 0:00:02]} 31. Rc7 {[%emt 0:04:33]} 1/2-1/2

[Event "22nd OIBM 2018"]
[Site "Gmund am Tegernsee"]
[Date "2018.10.29"]
[Round "3"]
[White "Slugin, Sergey"]
[Black "Gueci, Tea"]
[Result "1/2-1/2"]
[ECO "B40"]
[WhiteElo "2362"]
[BlackElo "2166"]
[Annotator "NA"]
[PlyCount "56"]
[EventDate "2018.10.27"]
[EventType "swiss"]
[EventCountry "GER"]
[SourceTitle "playchess.com"]
[Source "ChessBase"]
[SourceQuality "1"]
[TimeControl "40/5400+30:1800+30"]

1. e4 {[%emt 0:00:00]} c5 {[%emt 0:00:00]} 2. Nf3 {[%emt 0:00:00]} e6 {[%emt 0:00:00]} 3. g3 {[%emt 0:00:00]} Nc6 {[%emt 0:00:06]} 4. Bg2 {[%emt 0:00:04]} g6 {[%emt 0:01:05]} 5. O-O {[%emt 0:01:31]} Bg7 {[%emt 0:00:10]} 6. c3 {[%emt 0:00:24]} e5 {[%emt 0:05:37]} 7. d3 {[%emt 0:06:16]} Nge7 {[%emt 0:00:50]} 8. Be3 {[%emt 0:00:51]} d6 {[%emt 0:00:54]} 9. Na3 {[%emt 0:03:45]} O-O {[%emt 0:01:11]} 10. d4 {[%emt 0:02:47]} exd4 {[%emt 0:18:30]} 11. cxd4 {[%emt 0:00:16]} Bg4 {[%emt 0:01:25]} 12. dxc5 {[%emt 0:11:23]} dxc5 {[%emt 0:02:28]} 13. Qxd8 {[%emt 0:01:02]} Rfxd8 {[%emt 0:01:56]} 14. Bxc5 {[%emt 0:00:45]} b6 {[%emt 0:10:53]} 15. Bxe7 {[%emt 0:01:03]} Nxe7 {[%emt 0:00:05]} 16. Nc4 {[%emt 0:00:54]} Rac8 {[%emt 0:06:14]} 17. Rac1 {[%emt 0:03:26]} b5 {[%emt 0:05:13]} 18. Ne3 {[%emt 0:05:07]} Bxf3 {[%emt 0:06:37]} 19. Bxf3 {[%emt 0:00:58]} Bxb2 {[%emt 0:05:41]} 20. Rb1 {[%emt 0:05:22]} Rd2 {[%emt 0:00:29]} 21. Rfd1 {[%emt 0:00:45]} Rxd1+ {[%emt 0:05:13]} 22. Nxd1 {[%emt 0:02:49]} Bd4 {[%emt 0:00:09]} 23. Rxb5 {[%emt 0:04:00]} Rc2 {[%emt 0:03:15]} 24. Rb7 {[%emt 0:01:04]} Kf8 {[%emt 0:03:55]} 25. Rb8+ {[%emt 0:07:21]} Kg7 {[%emt 0:01:03]} 26. Rb7 {[%emt 0:00:21]} Kf8 {[%emt 0:00:29]} 27. Rb8+ {[%emt 0:00:29]} Kg7 {[%emt 0:00:10]} 28. Rb7 {[%emt 0:00:06]} Kf8 {[%emt 0:03:01]} 1/2-1/2

[Event "22nd OIBM 2018"]
[Site "Gmund am Tegernsee"]
[Date "2018.10.29"]
[Round "3"]
[White "Burchert, Wolfgang"]
[Black "Raupp, Thomas"]
[Result "1-0"]
[ECO "B32"]
[WhiteElo "2057"]
[BlackElo "2291"]
[Annotator "NA"]
[PlyCount "51"]
[EventDate "2018.10.27"]
[EventType "swiss"]
[EventCountry "GER"]
[SourceTitle "playchess.com"]
[Source "ChessBase"]
[SourceQuality "1"]
[TimeControl "40/5400+30:1800+30"]

1. e4 {[%emt 0:00:00]} c5 {[%emt 0:00:00]} 2. Nf3 {[%emt 0:00:00]} Nc6 {[%emt 0:00:30]} 3. d4 {[%emt 0:00:07]} cxd4 {[%emt 0:00:06]} 4. Nxd4 {[%emt 0:00:06]} e5 {[%emt 0:00:18]} 5. Nb5 {[%emt 0:00:58]} d6 {[%emt 0:00:06]} 6. N1c3 {[%emt 0:01:22]} a6 {[%emt 0:00:08]} 7. Na3 {[%emt 0:00:05]} Be7 {[%emt 0:00:24]} 8. Nc4 {[%emt 0:01:09]} b5 {[%emt 0:00:34]} 9. Ne3 {[%emt 0:00:07]} Nf6 {[%emt 0:00:30]} 10. g3 {[%emt 0:01:53]} O-O {[%emt 0:03:42]} 11. Bg2 {[%emt 0:00:07]} b4 {[%emt 0:00:31]} 12. Ncd5 {[%emt 0:00:26]} Nxd5 {[%emt 0:00:12]} 13. Nxd5 {[%emt 0:00:35]} Bg5 {[%emt 0:01:26]} 14. Bxg5 {[%emt 0:02:38]} Qxg5 {[%emt 0:00:52]} 15. O-O {[%emt 0:00:24]} Rb8 {[%emt 0:03:12]} 16. Qd3 {[%emt 0:08:40]} a5 {[%emt 0:03:16]} 17. Rad1 {[%emt 0:08:58]} Qd8 {[%emt 0:56:11]} 18. Kh1 {[%emt 0:11:24]} Be6 {[%emt 0:00:15]} 19. Ne3 {[%emt 0:01:58]} Qb6 {[%emt 0:02:02]} 20. f4 {[%emt 0:08:18]} exf4 {[%emt 0:06:15]} 21. gxf4 {[%emt 0:00:15]} Rfd8 {[%emt 0:04:21]} 22. Rg1 {[%emt 0:13:56]} Qc5 {[%emt 0:04:31]} 23. Bf3 {[%emt 0:04:00]} g6 {[%emt 0:05:12]} 24. Rg5 Qb6 25. Nd5 {[%emt 0:10:41]} h6 {[%emt 0:02:36]} 26. Ra1 1-0

[Event "22nd OIBM 2018"]
[Site "Gmund am Tegernsee"]
[Date "2018.10.29"]
[Round "3"]
[White "Ries, Berthold"]
[Black "Jovi, Klaus"]
[Result "0-1"]
[ECO "C06"]
[WhiteElo "1862"]
[BlackElo "1512"]
[Annotator "NA"]
[PlyCount "54"]
[EventDate "2018.10.27"]
[EventType "swiss"]
[EventCountry "GER"]
[SourceTitle "playchess.com"]
[Source "ChessBase"]
[SourceQuality "1"]
[TimeControl "40/5400+30:1800+30"]

1. e4 {[%emt 0:00:00]} e6 {[%emt 0:00:00]} 2. d4 {[%emt 0:00:00]} d5 {[%emt 0:00:00]} 3. Nd2 {[%emt 0:00:00]} Nf6 {[%emt 0:00:29]} 4. e5 {[%emt 0:00:08]} Nfd7 {[%emt 0:00:19]} 5. Bd3 {[%emt 0:00:18]} c5 {[%emt 0:00:23]} 6. c3 {[%emt 0:00:08]} Nc6 {[%emt 0:00:34]} 7. Ne2 {[%emt 0:00:10]} cxd4 {[%emt 0:00:45]} 8. cxd4 {[%emt 0:00:11]} f6 {[%emt 0:01:25]} 9. exf6 {[%emt 0:00:12]} Nxf6 {[%emt 0:00:19]} 10. O-O {[%emt 0:00:41]} Bd6 {[%emt 0:01:04]} 11. Nf3 {[%emt 0:00:28]} O-O {[%emt 0:00:54]} 12. Bf4 {[%emt 0:01:23]} h6 {[%emt 0:03:11]} 13. Rc1 {[%emt 0:09:58]} Bxf4 {[%emt 0:04:51]} 14. Nxf4 {[%emt 0:00:15]} Qb6 {[%emt 0:03:30]} 15. Ng6 {[%emt 0:05:19]} Re8 {[%emt 0:03:55]} 16. Nge5 {[%emt 0:03:46]} Re7 {[%emt 0:06:49]} 17. b3 {[%emt 0:13:40]} Bd7 {[%emt 0:01:20]} 18. Re1 {[%emt 0:00:29]} Be8 {[%emt 0:01:20]} 19. Bb1 {[%emt 0:01:01]} Bh5 {[%emt 0:02:15]} 20. h3 {[%emt 0:09:28]} Nxe5 {[%emt 0:07:26]} 21. dxe5 {[%emt 0:06:27]} Bxf3 {[%emt 0:06:02]} 22. Qxf3 {[%emt 0:00:18]} Ne4 {[%emt 0:02:19]} 23. Bxe4 {[%emt 0:00:32]} dxe4 {[%emt 0:00:41]} 24. Rxe4 {[%emt 0:05:00]} Rf8 {[%emt 0:03:02]} 25. Rf4 {[%emt 0:00:27]} Rxf4 {[%emt 0:01:53]} 26. Qxf4 {[%emt 0:00:26]} Rf7 {[%emt 0:00:08]} 27. Rc8+ {[%emt 0:00:09]} Rf8 {[%emt 0:03:46]} 0-1

[Event "22nd OIBM 2018"]
[Site "Gmund am Tegernsee"]
[Date "2018.10.30"]
[Round "4"]
[White "Forchert, Martin"]
[Black "Babar, Michael"]
[Result "1-0"]
[ECO "B06"]
[WhiteElo "2363"]
[BlackElo "2157"]
[Annotator "NA"]
[PlyCount "57"]
[EventDate "2018.10.27"]
[EventType "swiss"]
[EventCountry "GER"]
[SourceTitle "playchess.com"]
[Source "ChessBase"]
[SourceQuality "1"]
[TimeControl "40/5400+30:1800+30"]

1. e4 {[%emt 0:00:00]} g6 {[%emt 0:00:00]} 2. d4 {[%emt 0:00:00]} d6 {[%emt 0:00:38]} 3. Nc3 {[%emt 0:00:00]} Bg7 {[%emt 0:00:36]} 4. Be3 {[%emt 0:00:10]} a6 {[%emt 0:01:16]} 5. a4 {[%emt 0:04:16]} Nd7 {[%emt 0:06:07]} 6. Nge2 {[%emt 0:03:42] B06: Moderne Verteidigung} (6. Be2 b6 7. h4 h6 8. Bf3 Bb7 9. Nge2 e6 10. Qd2 Ne7 11. g3 Nf5 12. h5 g5 13. Bg2 O-O {0-1 (39) Meijers,V (2502)-Vitiugov,N (2709) Germany 2011}) 6... Ngf6 {[%emt 0:03:12]} 7. h3 {[%emt 0:00:07]} O-O {[%emt 0:00:50]} 8. g4 {[%emt 0:00:43]} e5 $146 {[%emt 0:02:47]} ({Vorgänger:} 8... b6 9. Bg2 Bb7 10. O-O Rb8 11. Qd2 c5 12. d5 Ne8 13. Bg5 Nc7 14. f4 {0-1 (38) Mikkelsen,N (2246)-Berg,K (2420) Skanderborg 2005}) 9. Bg2 {[%emt 0:00:25]} b6 {[%emt 0:15:10]} 10. d5 {[%emt 0:11:56]} (10. g5 $5 {[%cal Rg5f6]}) 10... Rb8 {[%emt 0:02:04]} 11. Qd2 {[%emt 0:07:50]} b5 {[%emt 0:08:18]} 12. a5 {[%emt 0:04:55]} b4 {[%emt 0:05:21]} 13. Na4 {[%emt 0:14:16]} Rb5 {[%emt 0:04:21]} 14. O-O {[%emt 0:04:05]} h5 {[%emt 0:04:33]} 15. g5 {[%emt 0:00:09]} Nh7 {[%emt 0:03:51]} 16. c4 {[%emt 0:01:26]} Rb8 {[%emt 0:16:37]} 17. c5 {[%emt 0:10:37]} f5 {[%emt 0:00:16]} 18. gxf6 {[%emt 0:00:19]} Ndxf6 {[%emt 0:00:17]} 19. cxd6 {[%emt 0:00:36]} cxd6 {[%emt 0:00:12]} 20. Nb6 {[%emt 0:00:23]} Bxh3 {[%emt 0:02:11]} 21. Bxh3 {[%emt 0:01:36]} Nxe4 {[%emt 0:00:02]} 22. Qxb4 {[%emt 0:02:28]} Qh4 {[%emt 0:00:29]} 23. Be6+ {[%emt 0:01:18]} Kh8 {[%emt 0:00:01]} 24. Ng3 {[%emt 0:00:28]} Rf3 {[%emt 0:01:35]} 25. Nxe4 {[%emt 0:01:19]} Rxe3 {[%emt 0:00:51]} 26. fxe3 {[%emt 0:01:45]} Ng5 {[%emt 0:00:47]} 27. Qe1 {[%emt 0:03:46]} Qxe4 {[%emt 0:00:48]} 28. Qg3 {[%emt 0:00:35]} Bh6 {[%emt 0:00:30]} 29. Ra4 $18 {[%emt 0:03:20]} 1-0

[Event "22nd OIBM 2018"]
[Site "Gmund am Tegernsee"]
[Date "2018.10.30"]
[Round "4"]
[White "Bernabeu Lopez, Carlos Javier"]
[Black "Krueger, Rainer"]
[Result "1-0"]
[ECO "B70"]
[WhiteElo "2353"]
[BlackElo "2152"]
[Annotator "NA"]
[PlyCount "133"]
[EventDate "2018.10.27"]
[EventType "swiss"]
[EventCountry "GER"]
[SourceTitle "playchess.com"]
[Source "ChessBase"]
[SourceQuality "1"]
[TimeControl "40/5400+30:1800+30"]

1. e4 {[%emt 0:00:00]} c5 {[%emt 0:00:00]} 2. Nf3 {[%emt 0:00:00]} d6 {[%emt 0:00:00]} 3. d4 {[%emt 0:00:00]} cxd4 {[%emt 0:00:00]} 4. Nxd4 {[%emt 0:00:00]} Nf6 {[%emt 0:00:00]} 5. Nc3 {[%emt 0:00:00]} g6 {[%emt 0:00:05]} 6. g3 {[%emt 0:00:06]} Nc6 {[%emt 0:00:14]} 7. Bg2 {[%emt 0:00:20]} Nxd4 {[%emt 0:00:20]} 8. Qxd4 {[%emt 0:00:05]} Bg7 {[%emt 0:00:08]} 9. O-O {[%emt 0:00:36]} O-O {[%emt 0:00:08]} 10. Qd3 {[%emt 0:00:37]} Rb8 {[%emt 0:14:20] B70: Sicilian Dragon: 6 g3 and 6 Be2 (without a later Be3)} (10... Be6 11. Nd5 Rc8 12. c3 a6 13. Re1 Nd7 14. a4 Ne5 15. Qd1 Re8 16. h3 Nc4 17. Kh2 Bd7 18. Re2 b5 19. axb5 Bxb5 {½-½ (74) Karjakin,S (2781)-Topalov,V (2749) Paris 2017}) 11. Re1 {[%emt 0:02:47]} b5 $146 {[%emt 0:06:37]} ({Predecessor:} 11... b6 12. Nd5 Bb7 13. Bg5 e6 14. Nxf6+ Bxf6 15. Bxf6 Qxf6 16. c3 Rfd8 17. Rad1 Qe5 18. h4 {1-0 (38) Lin,C (2485)-Migot,T (2379) Vandoeuvre 2018}) 12. a3 {[%emt 0:03:07]} a6 {[%emt 0:06:39]} 13. Nd5 {[%emt 0:03:02]} Nxd5 {[%emt 0:05:13]} 14. exd5 {[%emt 0:00:05]} Bf5 {[%emt 0:00:10]} 15. Qe2 {[%emt 0:00:07]} Qc8 {[%emt 0:07:17]} 16. c3 {[%emt 0:01:44]} Re8 {[%emt 0:02:34]} 17. Bg5 {[%emt 0:01:09]} h6 {[%emt 0:04:43]} 18. Bf4 {[%emt 0:00:27]} a5 {[%emt 0:05:36]} 19. Qd2 {[%emt 0:00:06]} Kh7 {[%emt 0:00:59]} 20. Be4 {[%emt 0:01:29]} Bxe4 {[%emt 0:08:36]} 21. Rxe4 {[%emt 0:00:04]} Rb7 {[%emt 0:11:41]} (21... g5 $11) 22. Bxh6 {[%emt 0:01:12]} Bf6 {[%emt 0:02:28]} ({Stronger than} 22... Bxh6 23. Rh4 Kg7 24. Qxh6+ Kf6 25. Rf4+ Ke5 26. Rd1 Qc4 27. Rxc4 Kf6 28. Rf4+ Ke5 29. Rxf7 Rg8 30. Qf4#) 23. Bg5 {[%emt 0:00:18]} Qf5 {[%emt 0:01:42]} 24. Rh4+ $1 {[%emt 0:00:17]} Kg8 {[%emt 0:00:46]} 25. Bxf6 {[%emt 0:00:05]} Qxf6 {[%emt 0:00:24]} 26. Re1 {[%emt 0:02:07]} Rc8 {[%emt 0:03:39]} 27. Ree4 {[%emt 0:03:38]} Rc5 {[%emt 0:00:21]} 28. Rh6 {[%emt 0:03:48]} Rc4 {[%emt 0:06:03]} 29. Reh4 {[%emt 0:00:38]} Rxh4 {[%emt 0:00:42]} 30. Rxh4 {[%emt 0:00:05]} ({Worse is} 30. gxh4 Qe5 $15) 30... Rc7 {[%emt 0:01:18]} 31. Qe2 {[%emt 0:04:39]} Rc5 {[%emt 0:00:34]} 32. Rf4 {[%emt 0:00:18]} Qe5 {[%emt 0:02:19]} 33. Re4 {[%emt 0:00:03]} Qxd5 {[%emt 0:00:50]} 34. Rxe7 {[%emt 0:00:07]} Qf5 {[%emt 0:02:20]} 35. Re8+ {[%emt 0:02:19]} Kh7 {[%emt 0:04:40]} 36. Qe7 {[%emt 0:01:21]} Qf3 {[%emt 0:01:28]} 37. Qh4+ {[%emt 0:00:47]} Rh5 {[%emt 0:00:08]} 38. Qd4 {[%emt 0:00:04]} Re5 {[%emt 0:03:00]} 39. Rxe5 {[%emt 0:00:06]} dxe5 {[%emt 0:00:06]} 40. Qxe5 {[%emt 0:00:03]} Qd1+ {[%emt 0:00:41]} 41. Kg2 {[%emt 0:30:06]} Qb3 {[%emt 0:30:08]} 42. Qe2 {[%emt 0:02:13]} Qd5+ {[%emt 0:00:00]} 43. Kg1 {[%emt 0:00:00]} Qb3 {[%emt 0:00:00]} 44. h4 {[%emt 0:00:00]} Kg8 {[%emt 0:00:00]} 45. Kh2 {[%emt 0:00:00]} Kf8 {[%emt 0:00:00]} 46. Qd2 {[%emt 0:00:00]} Kg7 {[%emt 0:00:00]} 47. c4 {[%emt 0:00:00]} b4 {[%emt 0:00:00]} 48. axb4 {[%emt 0:00:00]} axb4 {[%emt 0:00:00]} 49. Qd4+ {[%emt 0:00:00]} Kg8 {[%emt 0:00:00]} 50. c5 {[%emt 0:00:00]} Qf3 {[%emt 0:00:00]} 51. Qe3 {[%emt 0:00:00]} Qd5 {[%emt 0:00:00]} 52. Qe8+ {[%emt 0:00:00]} Kh7 {[%emt 0:00:00]} 53. c6 {[%emt 0:00:00]} Qf3 {[%emt 0:00:00]} 54. Qe1 {[%emt 0:00:00]} Qxc6 {[%emt 0:00:00]} 55. Qxb4 {[%emt 0:00:00]} Qd5 {[%emt 0:00:00]} 56. Qf4 {[%emt 0:00:00]} Qb3 {[%emt 0:00:00]} 57. Qd4 {[%emt 0:00:00]} Kg8 {[%emt 0:00:00]} 58. Qc3 {[%emt 0:00:00]} Qa2 {[%emt 0:00:00]} 59. Qa3 {[%emt 0:00:00]} Qb1 {[%emt 0:00:00]} 60. b4 {[%emt 0:00:00]} Qf5 {[%emt 0:00:00]} 61. Qe3 {[%emt 0:00:00]} Qb1 {[%emt 0:00:00]} 62. Qc5 {[%emt 0:00:00]} Qe4 {[%emt 0:00:00]} 63. b5 $18 {[%emt 0:00:00]} Qf3 {[%emt 0:00:00]} 64. Kg1 {[%emt 0:00:00]} Kh7 {[%emt 0:01:32]} 65. Qc6 {[%emt 0:00:00]} Qd1+ {[%emt 0:00:54]} 66. Kg2 {[%emt 0:00:00]} g5 {[%emt 0:00:29]} 67. hxg5 {[%emt 0:00:00]} 1-0